Cogmind - Beta 17 @@@ ROGUE MODE // 2026.07.15 @ 11:28:26 Player: 3.14 Result: Destroyed by Y-64 Sentinel with Wave Gun Performance ------------- Evolutions (5) 2500 Regions Visited (16) 3200 Robots Destroyed (224) 1120 Value Destroyed (11636) 11636 Prototype IDs (13) 260 Alien Tech Used (0) 0 Bonus (7405) 7405 TOTAL SCORE: 26121 Bonus ------- High Alert Combat Kills 1405 Follower Combat Kills 1300 Entered Garrisons 1200 Used RIF Installer 3500 Cogmind --------- Core Integrity 0/1000 Matter 209/300 Energy 100/100 System Corruption 8% Temperature Cool (9) Movement Core (50) Location -5/Factory Parts ------- > --- POWER (1) -------- (None) > --- PROPULSION (4) --- (None) > --- UTILITY (10) ----- (None) > --- WEAPON (2) ------- (None) > --- INVENTORY (5) ---- Improved Heavy Treads Improved Heavy Treads Peak State ------------ > --- POWER ------------ Light Angular Momentum Engine > --- PROPULSION ------- Armored Treads Armored Treads Improved Heavy Treads > --- UTILITY ---------- Improved Heat Sink Huge Storage Unit Advanced Targeting Computer Hardened Heavy Armor Plating Improved Thermal Shield Relay Coupler [Swarmer] Relay Coupler [Grunt] Relay Coupler [Sentry] Relay Coupler [Hunter] > --- WEAPON ----------- KE Penetrator KE Penetrator > --- INVENTORY -------- Light Fission Core Light Treads Armored Treads Improved Heavy Treads Improved Heavy Treads Improved Utility Shielding Medium Reactive Plating Hardlight Generator Relay Coupler [Swarmer] Relay Coupler [Duelist] Relay Coupler [Demolisher] KE Penetrator KE Penetrator KE Penetrator Heavy Mass Driver Heavy Mass Driver Heavy Rocket Launcher Heavy Rocket Launcher Remote Datajack Remote Datajack Great Axe [Rating: 85] Favorites ----------- Power Improved Deuterium Engine Engine Improved Deuterium Engine Power Core Nuclear Core Propulsion Armored Treads Treads Armored Treads Wheel Subdweller Monowheel Utility Advanced Targeting Computer Device Improved Heat Sink Storage Huge Storage Unit Processor Advanced Targeting Computer Hackware Relay Coupler [Grunt] Protection Hardened Heavy Armor Plating Weapon Great Axe Energy Gun Precision Beam Rifle Energy Cannon Heavy Particle Cannon Ballistic Gun Enhanced Autogun Ballistic Cannon Heavy Mass Driver Launcher Improved Grenade Launcher Special Weapon Remote Datajack Slashing Weapon Great Axe Build | -11 -10 -10 -10 -8 -8 -8 -8 -7 -7 -7 -7 -6 -6 -6 -6 -5 ------- Run | Yrd Mat Min Sub Mat Gar Mat Gar Fac Gar Fac Gar Fac Gar Fac Gar Fac Slots Evolved 10 | . . . . 4 . . . 2 . . . 2 . . . 2 Power . | . . . . . . . . . . . . . . . . . Propulsion 2 | . . . . 2 . . . . . . . . . . . . Utility 8 | . . . . 2 . . . 2 . . . 2 . . . 2 Weapon . | . . . . . . . . . . . . . . . . . Parts Attached 155 | 8 . 5 7 34 5 . 1 18 15 6 10 14 4 6 13 9 Power 16 | 1 . 1 . 3 1 . . 2 2 . 2 1 . 1 1 1 Engine 9 | 1 . 1 . 1 1 . . 1 1 . 1 . . 1 . 1 Core 7 | . . . . 2 . . . 1 1 . 1 1 . . 1 . Reactor . | . . . . . . . . . . . . . . . . . Propulsion 32 | 2 . . 3 12 . . 1 2 2 1 2 3 . 2 2 . Treads 31 | 2 . . 2 12 . . 1 2 2 1 2 3 . 2 2 . Leg . | . . . . . . . . . . . . . . . . . Wheel 1 | . . . 1 . . . . . . . . . . . . . Hover . | . . . . . . . . . . . . . . . . . Flight . | . . . . . . . . . . . . . . . . . Utility 67 | 2 . 2 2 8 1 . . 10 6 4 5 9 4 3 7 4 Device 17 | 1 . 1 1 2 1 . . 4 2 1 1 . . . 1 2 Storage 5 | 1 . . . 2 . . . 1 . . . 1 . . . . Processor 5 | . . 1 . 2 . . . 1 1 . . . . . . . Hackware 26 | . . . . . . . . 1 1 2 2 7 4 2 6 1 Protection 14 | . . . 1 2 . . . 3 2 1 2 1 . 1 . 1 Artifact . | . . . . . . . . . . . . . . . . . Weapon 40 | 3 . 2 2 11 3 . . 4 5 1 1 1 . . 3 4 Energy Gun 5 | 1 . 1 . 3 . . . . . . . . . . . . Energy Cannon 7 | . . . 1 1 2 . . 1 2 . . . . . . . Ballistic Gun 13 | 2 . 1 1 4 . . . . 2 . . . . . . 3 Ballistic Cannon 4 | . . . . . . . . . 1 . . 1 . . 1 1 Launcher 5 | . . . . 3 1 . . . . . . . . . 1 . Special Weapon 3 | . . . . . . . . 1 . 1 . . . . 1 . Impact Weapon . | . . . . . . . . . . . . . . . . . Slashing Weapon 3 | . . . . . . . . 2 . . 1 . . . . . Piercing Weapon . | . . . . . . . . . . . . . . . . . Special Melee Weapon . | . . . . . . . . . . . . . . . . . Unidentified Prototypes 4 | . . . . 4 . . . . . . . . . . . . Parts Lost 19 | . . 3 1 2 . . 1 . 3 . . 4 . 2 1 2 Power 2 | . . 1 . . . . . . 1 . . . . . . . Propulsion 8 | . . . 1 1 . . 1 . 1 . . 2 . 1 . 1 Utility 6 | . . 1 . . . . . . . . . 2 . 1 1 1 Weapon 3 | . . 1 . 1 . . . . 1 . . . . . . . Highest Loss Streak 4 | . . 2 1 1 . . 1 . 2 . . 4 . 2 1 2 To Critical Strikes . | . . . . . . . . . . . . . . . . . Average Backups 17 | 3 6 7 7 9 15 15 14 17 24 21 21 17 20 21 18 19 Power . | . 1 . . . . . . . . 1 1 1 1 1 1 . Propulsion 2 | 1 2 2 1 . 5 5 4 2 2 2 2 2 2 1 3 3 Utility 6 | . 1 2 2 2 2 3 3 6 11 9 9 8 9 11 7 5 Weapon 6 | . 1 3 3 6 7 7 7 8 9 7 6 6 7 7 6 7 Tool/Special . | . . . . . . . . . . . . . . . . . Unused Backups 52 | . 1 1 4 7 . . . . 8 1 10 . . . 6 14 Power 4 | . . . 1 1 . . . . . . . . . . . 2 Propulsion 8 | . . 1 1 . . . . . 1 1 . . . . 1 3 Utility 25 | . 1 . . 3 . . . . 4 . 9 . . . 5 3 Weapon 14 | . . . 2 3 . . . . 3 . . . . . . 6 Tool/Special 1 | . . . . . . . . . . . 1 . . . . . Average Slot Usage (%) 93 | . 100 99 99 98 100 100 100 99 91 85 88 97 99 96 86 85 Engine 5 | . 14 14 14 1 9 9 9 6 6 7 3 3 . 1 5 2 Core 2 | . . . . 7 . . . . . . 3 2 6 4 . 2 Treads 28 | . 28 28 22 35 36 36 36 30 29 29 30 25 26 25 20 16 Device 6 | . 14 2 9 10 9 9 9 13 6 2 7 . . . 5 8 Storage 7 | . 14 14 14 9 9 9 9 7 7 7 7 6 6 6 6 4 Processor 10 | . . 11 . 6 9 9 9 14 15 15 15 6 6 6 6 4 Hackware 7 | . . . . . . . . . . 4 1 25 25 30 21 21 Protection 8 | . . . 4 10 9 9 9 7 8 8 8 12 13 5 7 7 Energy Gun 1 | . . 1 4 5 8 9 9 . . . . . . . . . Energy Cannon 2 | . . . 11 2 . . . 6 6 . . . . . . . Ballistic Gun 4 | . 28 26 12 9 8 9 8 4 4 . . . . . . . Ballistic Cannon 1 | . . . . . . . . . 1 6 4 . . . 3 2 Special Weapon 1 | . . . . . . . . . . . 1 5 5 5 4 2 Slashing Weapon 1 | . . . . . . . . 1 . . 2 5 5 5 2 3 Peak Build Rating 85 | 7 7 9 14 37 37 36 36 47 52 56 57 58 62 62 74 85 Average Rating 46 | 6 7 7 11 26 36 36 35 42 48 53 54 55 59 58 69 76 On Entrance 37 | . 7 7 9 14 37 36 36 35 46 52 56 50 56 60 62 68 Avg Prop Armor Cover (%) 4 | . . . 4 . . . . . . . . . . . . . Naked Turns 16 | . . . . . . . . . . . . . . . . 16 Heaviest Build 140 | 14 14 15 26 50 48 44 44 115 125 132 135 132 128 135 136 140 Greatest Support 115 | 40 40 40 40 80 80 80 80 80 80 82 82 82 82 80 115 115 Greatest Overweight (x) 3 | 2 . . 1 . . . . 1 2 1 1 3 1 1 2 1 Average Overweight (x) . | . . . . . . . . . 1 1 1 1 1 1 1 . Largest Inventory Capacity 25 | 8 8 8 8 15 15 15 15 25 25 25 25 25 25 25 25 25 Average Capacity 20 | 7 8 8 8 11 15 15 15 19 25 25 25 25 25 25 25 24 Most Carried 25 | 5 8 8 8 15 15 15 15 25 25 25 25 24 25 25 25 25 Average Carried 19 | 3 6 7 7 10 14 15 14 17 24 24 24 20 23 24 23 23 Final Capacity 25 | 8 8 8 8 15 15 15 15 25 25 25 25 25 25 25 25 5 Final Carried 25 | 5 8 8 8 15 15 15 14 25 25 25 25 22 25 25 23 4 Class Distribution -------------------- 47% | Mutant 29% | Botlord-Mutant 12% | Scavenger-Mutant 9% | Bothacker-Mutant Dominant Class ---------------- Mutant | -10/Materials Mutant | -10/Mines Mutant | -10/Subcaves Scavenger-Mutant | -8/Materials Mutant | -8/Garrison Mutant | -8/Materials Mutant | -8/Garrison Mutant | -7/Factory Mutant | -7/Garrison Mutant | -7/Factory Bothacker-Mutant | -7/Garrison Botlord-Mutant | -6/Factory Botlord-Mutant | -6/Garrison Botlord-Mutant | -6/Factory Botlord-Mutant | -6/Garrison Botlord-Mutant | -5/Factory Resources | -11 -10 -10 -10 -8 -8 -8 -8 -7 -7 -7 -7 -6 -6 -6 -6 -5 ----------- Run | Yrd Mat Min Sub Mat Gar Mat Gar Fac Gar Fac Gar Fac Gar Fac Gar Fac Matter Collected 6709 | 303 . 109 87 810 415 . 325 359 840 567 1012 417 110 197 952 206 Remotely . | . . . . . . . . . . . . . . . . . Salvage Created 8690 | 162 . 299 165 1493 1054 . 468 582 915 743 737 190 29 242 1254 357 Parts 444 | 16 . 15 10 91 60 . 27 22 47 26 36 9 1 14 57 13 Haulers Intercepted 5 | . . . . 4 . . . . . 1 . . . . . . Recyclers Shooed 3 | . . . . 1 . . . . . 1 . . . . . 1 Parts Field Recycled . | . . . . . . . . . . . . . . . . . Retrieved Matter . | . . . . . . . . . . . . . . . . . Parts Self-Destructed . | . . . . . . . . . . . . . . . . . Prevented . | . . . . . . . . . . . . . . . . . Parts Restored . | . . . . . . . . . . . . . . . . . Kills | -11 -10 -10 -10 -8 -8 -8 -8 -7 -7 -7 -7 -6 -6 -6 -6 -5 ------- Run | Yrd Mat Min Sub Mat Gar Mat Gar Fac Gar Fac Gar Fac Gar Fac Gar Fac Combat Hostiles Destroyed 186 | . . 7 4 34 31 . 18 13 20 13 23 2 1 3 14 3 Melee 5 | . . . . . . . . 3 1 . . . . 1 . . Guns 74 | . . 7 3 18 20 . 11 5 8 . . . . . . 2 Cannons 67 | . . . 1 6 . . . 1 8 13 23 2 1 2 9 1 AOE 38 | . . . . 10 10 . 7 4 2 . . . . . 5 . Classes Destroyed 20 | 2 . 2 1 8 1 . 1 . . . . 1 1 1 1 1 Worker 7 | . . . . 4 . . . . . . . 2 . . . 1 Builder 3 | . . . . 2 . . . . . 1 . . . . . . Tunneler 6 | 5 . . . . . . . . . . . 1 . . . . Hauler 5 | . . . . 4 . . . . . 1 . . . . . . Recycler 10 | 1 . 1 . 1 . . . 1 . 3 . 1 . 1 . 1 Operator 3 | . . . . 3 . . . . . . . . . . . . Watcher 1 | . . . . 1 . . . . . . . . . . . . Swarmer 42 | . . 3 . 8 11 . 7 4 . 1 4 . . . 4 . Cutter 2 | . . . . . . . . . . . . . . . 2 . Grunt 75 | . . 4 . 17 10 . 5 7 8 8 8 . . 2 4 2 Brawler 6 | . . . . 1 3 . 2 . . . . . . . . . Duelist 5 | . . . . . 1 . . . 1 1 2 . . . . . Sentry 23 | . . . . 7 5 . . . 4 1 3 . . . 3 . Demolisher 2 | . . . . . . . . . . . . 2 . . . . Specialist 2 | . . . . . . . . . . . . . . . . 2 Hunter 6 | . . . . 1 1 . 1 . . . 2 . . . 1 . Programmer 20 | . . . . . . . 3 2 7 2 4 . . . 2 . Heavy 1 | . . . . . . . . . . . . . . 1 . . Behemoth 1 | . . . . . . . . . . . . . 1 . . . Subdweller 4 | . . . 4 . . . . . . . . . . . . . Best Kill Streak 12 | 4 . 4 3 5 6 . 12 4 4 4 11 3 1 2 6 2 Combat Bots Only 12 | . . 3 3 4 6 . 12 4 4 3 11 2 1 2 6 2 Max Kills in Single Turn 4 | 1 . 2 1 3 4 . 2 2 1 1 1 1 1 1 2 1 Gunslinging 1 | . . 1 . . . . 1 . . . . . . . . . Exploded 4 | . . . . 2 4 . 2 2 1 . . . . . 2 . Melee 1 | . . . . . . . . 1 1 . . . . 1 . . Uniques/NPCs Destroyed . | . . . . . . . . . . . . . . . . . Combat | -11 -10 -10 -10 -8 -8 -8 -8 -7 -7 -7 -7 -6 -6 -6 -6 -5 -------- Run | Yrd Mat Min Sub Mat Gar Mat Gar Fac Gar Fac Gar Fac Gar Fac Gar Fac Hostile Shots Fired 1093 | . . 36 13 121 89 . 117 59 159 22 154 75 2 20 108 118 Missed 306 | . . 6 4 29 25 . 39 17 42 7 46 27 . 5 31 28 Hits 787 | . . 30 9 92 64 . 78 42 117 15 108 48 2 15 77 90 Melee 14 | . . . . . . . 7 . . 1 . 6 . . . . Projectile 773 | . . 30 9 92 64 . 71 42 117 14 108 42 2 15 77 90 AOE 15 | . . . . . . . . . 1 . . 12 . . 2 . Critical Strikes 31 | . . 1 . 5 5 . 8 . 2 1 . . . 4 1 4 Part Disruptions 1 | . . . . . . . . . . . . . . . . 1 Damage Taken 11988 | . 28 391 253 1347 851 . 1150 613 1590 245 1105 1066 39 479 1208 1623 Core 1890 | . . 31 80 212 12 . 62 58 145 . 48 141 . 29 67 1005 Absorbed by Shields 254 | . . . . . 20 . . . . . 154 . . . 80 . Redirected to Shielding 38 | . . . . . . . . . . . . 21 . . 17 . Ignored by Resistances 324 | . . . . . . . . 36 . . 20 117 . 121 14 16 Regen/Repaired (Parts) 920 | . . . . 46 . . . 279 . 236 . . . . . 359 Core Remaining (%) 67 | 100 . . 55 . . . 48 . . . 64 . . . 72 . Volleys Fired 581 | 6 . 19 16 97 65 . 40 25 79 36 67 27 7 11 66 20 Largest 2 | 2 . 2 2 2 2 . 2 2 2 1 1 1 1 1 1 2 Hottest 160 | 40 . 40 110 110 86 . 86 105 160 65 65 65 65 65 65 66 Shots Fired 882 | 12 . 38 30 181 120 . 74 44 131 38 67 27 7 11 68 34 Gun 494 | 12 . 38 28 132 109 . 68 19 60 . . . . . . 28 Cannon 282 | . . . 2 36 4 . . 20 65 35 62 6 3 5 41 3 Launcher 36 | . . . . 13 7 . 6 2 4 . . . . . 4 . Special 70 | . . . . . . . . 3 2 3 5 21 4 6 23 3 Kinetic 505 | 12 . 38 15 84 54 . 34 19 66 35 62 6 3 5 41 31 Thermal 271 | . . . 15 84 59 . 34 20 59 . . . . . . . Explosive 36 | . . . . 13 7 . 6 2 4 . . . . . 4 . Electromagnetic . | . . . . . . . . . . . . . . . . . Robot Hit Streak 29 | 3 . 8 6 15 29 . 23 15 20 6 11 15 6 10 14 11 Robot Miss Streak 6 | 2 . 5 1 3 2 . 6 1 5 2 3 2 1 1 4 2 Penetration Max 1 | . . . . . . . . . 1 . . . . . . 1 Secondary Targets 13 | . . 4 . . 5 . 3 . . . . . . . . 1 Max Gunslinging Chain 1 | . . 1 . . 1 . 1 . . . . . . . . 1 Shots Hit Robots 664 | 5 . 24 22 130 85 . 49 42 85 28 44 29 6 19 67 29 Core Hits 347 | 6 . 14 10 75 47 . 29 21 57 15 21 6 1 5 32 8 Critical Kills 7 | . . . . 1 1 . . . 1 . . . . . 3 1 Critical Parts Destroyed 3 | . . . . 1 . . . . . . . . . . 2 . Critical Strikes 40 | . . . . 6 3 . 4 3 1 2 6 2 . 2 9 2 Burn 10 | . . . . 4 2 . 4 . . . . . . . . . Meltdown 1 | . . . . . . . . . 1 . . . . . . . Destroy 10 | . . . . 2 1 . . . . . . . . . 5 2 Blast 16 | . . . . . . . . . . 2 6 2 . 2 4 . Sever 3 | . . . . . . . . 3 . . . . . . . . Melee Attacks 78 | . . . . . . . . 13 8 . 4 7 4 9 31 2 Impact . | . . . . . . . . . . . . . . . . . Slashing 78 | . . . . . . . . 13 8 . 4 7 4 9 31 2 Piercing . | . . . . . . . . . . . . . . . . . Sneak Attacks 9 | . . . . . . . . 1 . . . 3 . 1 2 2 Combat Hostiles . | . . . . . . . . . . . . . . . . . Follow-up Attacks . | . . . . . . . . . . . . . . . . . Damage Inflicted 23021 | 64 . 284 297 3842 2132 . 1517 1341 2327 1827 3066 1096 116 562 3623 927 Guns 6541 | 54 . 283 267 1796 1424 . 827 312 1056 . . . . . . 522 Cannons 8732 | . . . 30 658 . . . 379 880 1813 3066 359 116 324 905 202 Explosions 4365 | . . . . 1295 708 . 690 292 339 . . 387 . . 608 46 Melee 3238 | . . . . . . . . 356 52 . . 325 . 238 2110 157 Ramming 145 | 10 . 1 . 93 . . . 2 . 14 . 25 . . . . Kinetic 11348 | 54 . 283 78 1134 725 . 399 312 1056 1813 3066 359 116 324 905 724 Thermal 3971 | . . . 219 1320 699 . 428 379 880 . . . . . . 46 Explosive 4319 | . . . . 1295 708 . 690 292 339 . . 387 . . 608 . Electromagnetic . | . . . . . . . . . . . . . . . . . Impact . | . . . . . . . . . . . . . . . . . Slashing 3238 | . . . . . . . . 356 52 . . 325 . 238 2110 157 Piercing . | . . . . . . . . . . . . . . . . . Highest Corruption 11 | . 1 1 1 . . . 2 2 8 8 11 2 2 2 4 8 Average Corruption 4 | . 1 1 1 . . . 1 1 6 8 10 1 2 2 2 4 Corruption Purged . | . . . . . . . . . . . . . . . . . Corruption Blocked . | . . . . . . . . . . . . . . . . . Effects 269 | . 1 3 2 . . . 1 14 72 38 77 11 6 7 35 2 Message Errors 82 | . . 1 . . . . . 5 16 20 23 5 2 2 8 . Matter Fused 54 | . . . 1 . . . 1 1 18 4 17 1 . 3 7 1 Heat Flow Errors 37 | . . . . . . . . 2 7 4 11 2 2 2 6 1 Energy Discharges 44 | . . 1 . . . . . 3 14 6 12 1 . . 7 . Parts Rejected 2 | . . . . . . . . . . 1 1 . . . . . Parts Fused 5 | . . . . . . . . . . . 5 . . . . . Data Loss (minor) 24 | . 1 . . . . . . 2 9 . 6 1 2 . 3 . Data Loss (major) 5 | . . . . . . . . . 1 . 1 1 . . 2 . Misfires 10 | . . 1 . . . . . . 5 2 . . . . 2 . Alerts 4 | . . . 1 . . . . 1 . 1 1 . . . . . Weapon Failures 2 | . . . . . . . . . 2 . . . . . . . Overload Shots . | . . . . . . . . . . . . . . . . . Overflow Damage 1068 | . . . . 31 . . 83 84 2 194 366 64 . 77 129 38 Projectiles 709 | . . . . . . . . 6 2 194 366 43 . 34 64 . Explosions 195 | . . . . 31 . . 83 36 . . . 8 . . 37 . Melee 164 | . . . . . . . . 42 . . . 13 . 43 28 38 Knockbacks 26 | . . . . . . . . . . 5 8 2 . 3 7 1 Impact . | . . . . . . . . . . . . . . . . . Kinetic 25 | . . . . . . . . . . 4 8 2 . 3 7 1 Secondary 1 | . . . . . . . . . . 1 . . . . . . Self-Inflicted Damage 109 | . . . . 28 . . 43 . . . . . . . 38 . Shots 4 | . . . . 1 . . 2 . . . . . . . 1 . Rammed 19 | 3 . . . 9 . . . 1 . 4 . 2 . . . . Targets Rammed 26 | 4 . 1 . 13 . . . 1 . 4 . 3 . . . . Kicked . | . . . . . . . . . . . . . . . . . Crushed 7 | 1 . 1 . 4 . . . . . . . 1 . . . . Highest Temperature 306 | . . 51 10 199 101 . 128 197 300 273 287 242 250 279 306 162 Average Temperature 72 | . . 26 4 76 26 . 42 98 78 62 102 83 89 134 81 82 Received Heat Transfer 2885 | . . 207 63 612 295 . 216 195 393 81 286 42 18 63 351 63 Effects 3 | . . . . . . . . . 2 . 1 . . . . . Energy Bleed 1 | . . . . . . . . . . . 1 . . . . . Interference 2 | . . . . . . . . . 2 . . . . . . . Siege Activations . | . . . . . . . . . . . . . . . . . Martial Activations . | . . . . . . . . . . . . . . . . . Shielding Activations . | . . . . . . . . . . . . . . . . . Robots Disrupted . | . . . . . . . . . . . . . . . . . Combat Hostiles . | . . . . . . . . . . . . . . . . . Robots Corrupted 1 | . . . . . . . . . . 1 . . . . . . Combat Hostiles . | . . . . . . . . . . . . . . . . . Parts Fried . | . . . . . . . . . . . . . . . . . Impact Corruptions 1 | . . . . . . . . . . 1 . . . . . . Robots Melted 2 | . . . . . 1 . . . 1 . . . . . . . Combat Hostiles 2 | . . . . . 1 . . . 1 . . . . . . . Parts Melted 12 | . . . 1 2 2 . 2 1 3 . . . . . . 1 Heat Transferred 8123 | . . . 481 2738 1608 . 1165 650 1431 . . . . . . 50 Parts Sabotaged . | . . . . . . . . . . . . . . . . . Parts Stolen . | . . . . . . . . . . . . . . . . . Parts Stripped . | . . . . . . . . . . . . . . . . . Power Chain Reactions . | . . . . . . . . . . . . . . . . . Alert | -11 -10 -10 -10 -8 -8 -8 -8 -7 -7 -7 -7 -6 -6 -6 -6 -5 ------- Run | Yrd Mat Min Sub Mat Gar Mat Gar Fac Gar Fac Gar Fac Gar Fac Gar Fac Maximum Alert Level 5 | . . . . 2 3 2 3 2 4 3 5 3 1 1 4 2 Low Security (%) 27 | 100 100 100 . 64 16 . . 18 9 . . 12 20 99 26 14 Level 1 27 | . . . . 23 15 . 38 77 32 1 6 63 79 . 4 60 Level 2 17 | . . . . 12 15 100 22 4 23 66 16 1 . . 24 24 Level 3 18 | . . . . . 52 . 38 . 16 32 34 23 . . 34 . Level 4 8 | . . . . . . . . . 18 . 42 . . . 9 . Level 5 . | . . . . . . . . . . . . . . . . . High Security . | . . . . . . . . . . . . . . . . . Max Security . | . . . . . . . . . . . . . . . . . Peak Influence 1693 | 15 11 85 . 503 1098 534 775 413 1544 810 1693 1014 367 206 1255 658 Initial 888 | . . . . . 96 534 340 406 113 810 312 888 160 192 16 658 Average 473 | 1 . 17 . 200 604 530 566 294 622 603 983 431 276 102 572 313 Influence Increases 9117 | 30 16 181 . 1114 1002 . 445 471 1481 382 1471 453 267 155 1419 230 Destroy 0b10 Robot/C 4440 | . . 140 . 680 620 . 360 260 460 260 640 180 100 80 600 60 Destroy 0b10 Robot/NC 215 | 30 . 5 . 75 . . . 5 . 25 . 25 . 10 30 10 Destroy Leader 592 | . . 30 . 180 20 . 30 60 30 52 40 50 10 10 60 20 Allied During Kill 201 | . . 6 . 1 . . . . 6 . 62 11 21 7 85 2 Successful Hack 170 | . 16 . . 24 14 . . 29 14 5 . . 14 28 21 5 Disable Machine 195 | . . . . 15 . . . 30 45 30 . 30 . 15 . 30 Anti-Garrison Action 2500 | . . . . . 300 . . . 850 . 600 150 100 . 500 . Destroy Structure 429 | . . . . 64 48 . 25 12 76 10 39 7 22 5 63 58 Partial Spotted 15 | . . . . . . . . . . . . . . . . 15 Lose Combat Pursuer 360 | . . . . 75 . . 30 75 . . 90 . . . 60 30 Influence Decreases 8955 | 30 16 175 6 966 52 574 194 1084 99 1479 225 1917 129 499 187 1323 Entered New Map 3744 | . . . 4 . 52 564 184 369 49 734 135 805 69 175 7 597 Time Decay 2944 | 30 16 155 . 626 . 10 . 565 . 470 . 422 . 264 . 386 Lost Part 172 | . . 20 2 20 . . 10 . 30 . . 40 . 20 10 20 Lost Ally 520 | . . . . 20 . . . . 20 . 90 100 60 40 170 20 Purge Threat 1575 | . . . . 300 . . . 150 . 275 . 550 . . . 300 Squads Dispatched 35 | . . . . 8 . . . 8 . 5 . 9 . . . 5 Investigation 7 | . . . . 2 . . . 4 . 1 . . . . . . Extermination 8 | . . . . . . . . 3 . 2 . 2 . . . 1 Reinforcement 12 | . . . . 3 . . . 1 . 2 . 3 . . . 3 Assault 2 | . . . . . . . . . . . . 2 . . . . Garrison 6 | . . . . 3 . . . . . . . 2 . . . 1 Intercept . | . . . . . . . . . . . . . . . . . Searches Triggered . | . . . . . . . . . . . . . . . . . Construction Impeded . | . . . . . . . . . . . . . . . . . Haulers Reinforced 2 | . . . . . . . . . . 1 . 1 . . . . Active Scanning Responses . | . . . . . . . . . . . . . . . . . Cargo Convoy Interrupts 1 | . . . . . . . . . . . . . . . . 1 Stealth | -11 -10 -10 -10 -8 -8 -8 -8 -7 -7 -7 -7 -6 -6 -6 -6 -5 --------- Run | Yrd Mat Min Sub Mat Gar Mat Gar Fac Gar Fac Gar Fac Gar Fac Gar Fac Distress Signals 8 | . . . . 2 . . . . . . . 1 . . . 5 Communications Jammed 9 | . . . . . . . . . . 2 . 3 . 4 . . Distress Signals 5 | . . . . . . . . . . 2 . 3 . . . . Times Spotted 298 | . 2 7 5 52 29 . 18 17 22 16 41 22 6 8 39 14 Peak Tracking Total 8 | . 1 3 2 5 5 . 8 4 4 4 5 5 3 3 6 8 Tactical Retreats 17 | . . . . 3 . . 1 3 . . 5 . . . 3 2 Traps | -11 -10 -10 -10 -8 -8 -8 -8 -7 -7 -7 -7 -6 -6 -6 -6 -5 ------- Run | Yrd Mat Min Sub Mat Gar Mat Gar Fac Gar Fac Gar Fac Gar Fac Gar Fac Traps Triggered 32 | . 1 . . 1 2 . . . 5 1 7 3 1 . 11 . Indirectly . | . . . . . . . . . . . . . . . . . Trap Hack Attempts . | . . . . . . . . . . . . . . . . . Triggered . | . . . . . . . . . . . . . . . . . Disarmed . | . . . . . . . . . . . . . . . . . Reprogrammed . | . . . . . . . . . . . . . . . . . Reused . | . . . . . . . . . . . . . . . . . Traps Extracted . | . . . . . . . . . . . . . . . . . Installed . | . . . . . . . . . . . . . . . . . Triggered . | . . . . . . . . . . . . . . . . . Machines | -11 -10 -10 -10 -8 -8 -8 -8 -7 -7 -7 -7 -6 -6 -6 -6 -5 ---------- Run | Yrd Mat Min Sub Mat Gar Mat Gar Fac Gar Fac Gar Fac Gar Fac Gar Fac Machines Disabled 32 | . . . . 1 3 . . 2 7 2 5 3 2 1 4 2 Max in Single Turn 2 | . . . . 1 1 . . 1 1 1 1 2 1 1 1 2 Garrison Access 1 | . . . . . . . . . . . . 1 . . . . Garrison Relay 17 | . . . . . 3 . . . 3 . 5 . 2 . 4 . Machines Repaired . | . . . . . . . . . . . . . . . . . Machines Dismantled . | . . . . . . . . . . . . . . . . . Machines Sabotaged . | . . . . . . . . . . . . . . . . . Overloaded Fab Kills . | . . . . . . . . . . . . . . . . . Hacking | -11 -10 -10 -10 -8 -8 -8 -8 -7 -7 -7 -7 -6 -6 -6 -6 -5 --------- Run | Yrd Mat Min Sub Mat Gar Mat Gar Fac Gar Fac Gar Fac Gar Fac Gar Fac Machines Accessed 42 | . 2 . . 6 1 1 . 10 2 3 3 3 1 3 2 5 Terminals 27 | . 2 . . 4 1 . . 5 2 . 3 2 1 2 2 3 Fabricators 3 | . . . . . . . . 1 . 1 . . . . . 1 Repair Stations 5 | . . . . 1 . . . 2 . 1 . . . . . 1 Recycling Units . | . . . . . . . . . . . . . . . . . Scanalyzers 1 | . . . . . . . . 1 . . . . . . . . Garrison Access 6 | . . . . 1 . 1 . 1 . 1 . 1 . 1 . . Total Hacks 115 | . 11 . . 19 2 1 . 39 3 8 7 6 1 4 2 12 Successful 58 | . 5 . . 11 1 1 . 19 1 8 1 1 1 3 2 4 Failed 56 | . 6 . . 8 1 . . 19 2 . 6 5 . 1 . 8 Catastrophic 10 | . . . . 1 1 . . 3 1 . . 2 . . . 2 Database Lockouts 1 | . . . . . . . . 1 . . . . . . . . Manual 43 | . 10 . . 13 . . . 5 . 1 . 5 . . . 9 Terminals 68 | . 11 . . 14 2 . . 12 3 . 7 5 1 3 2 8 Fabricators 10 | . . . . . . . . 5 . 3 . . . . . 2 Repair Stations 16 | . . . . 2 . . . 8 . 4 . . . . . 2 Recycling Units . | . . . . . . . . . . . . . . . . . Scanalyzers 13 | . . . . . . . . 13 . . . . . . . . Garrison Access 8 | . . . . 3 . 1 . 1 . 1 . 1 . 1 . . Terminal Hacks 18 | . 1 . . 5 1 . . 2 1 . 1 . 1 2 2 2 Part Schematic 1 | . . . . 1 . . . . . . . . . . . . Robot Analysis 1 | . . . . 1 . . . . . . . . . . . . Prototype ID Bank 3 | . 1 . . 1 . . . 1 . . . . . . . . Open Door 2 | . . . . . . . . . . . 1 . . . 1 . Emergency Access Points 1 | . . . . . . . . . . . . . . 1 . . Unreport Threat 5 | . . . . 2 . . . 1 . . . . . . . 2 Locate Traps 1 | . . . . . . . . . . . . . . 1 . . Garrison Registry 3 | . . . . . 1 . . . 1 . . . 1 . . . Patrol Navigation 1 | . . . . . . . . . . . . . . . 1 . Fabricator Hacks 5 | . . . . . . . . 3 . 2 . . . . . . Network Status 1 | . . . . . . . . 1 . . . . . . . . Load Schematic 2 | . . . . . . . . 1 . 1 . . . . . . Build 2 | . . . . . . . . 1 . 1 . . . . . . Repair Station Hacks 10 | . . . . 2 . . . 2 . 4 . . . . . 2 Scan Component 5 | . . . . 1 . . . 1 . 2 . . . . . 1 Repair 5 | . . . . 1 . . . 1 . 2 . . . . . 1 Recycling Unit Hacks . | . . . . . . . . . . . . . . . . . Scanalyzer 9 | . . . . . . . . 9 . . . . . . . . Insert Component 2 | . . . . . . . . 2 . . . . . . . . Analyze 2 | . . . . . . . . 2 . . . . . . . . Retrieve Study 5 | . . . . . . . . 5 . . . . . . . . Garrison Access Hacks 6 | . . . . 1 . 1 . 1 . 1 . 1 . 1 . . Unlock Access 6 | . . . . 1 . 1 . 1 . 1 . 1 . 1 . . Unauthorized Hacks 10 | . 4 . . 3 . . . 2 . 1 . . . . . . Terminals 7 | . 4 . . 3 . . . . . . . . . . . . Botnet 1 | . 1 . . . . . . . . . . . . . . . Operators 2 | . 1 . . 1 . . . . . . . . . . . . Skim 4 | . 2 . . 2 . . . . . . . . . . . . Fabricators 2 | . . . . . . . . 1 . 1 . . . . . . Prioritize 2 | . . . . . . . . 1 . 1 . . . . . . Repair Stations 1 | . . . . . . . . 1 . . . . . . . . Patch 1 | . . . . . . . . 1 . . . . . . . . Recycling Units . | . . . . . . . . . . . . . . . . . Scanalyzers . | . . . . . . . . . . . . . . . . . Garrison Access . | . . . . . . . . . . . . . . . . . Data Cores Recovered . | . . . . . . . . . . . . . . . . . Used . | . . . . . . . . . . . . . . . . . Hacking Detections 34 | . 2 . . 6 1 . . 8 2 2 3 2 1 2 1 4 Full Trace Events 7 | . . . . 1 1 . . 3 . 1 1 . . . . . Feedback Events . | . . . . . . . . . . . . . . . . . Feedback Blocked . | . . . . . . . . . . . . . . . . . Robot Schematics Acquired . | . . . . . . . . . . . . . . . . . Robots Built . | . . . . . . . . . . . . . . . . . Authchips . | . . . . . . . . . . . . . . . . . Time . | . . . . . . . . . . . . . . . . . Total Robot Build Rating . | . . . . . . . . . . . . . . . . . Part Schematics Acquired 3 | . . . . 1 . . . 2 . . . . . . . . Parts Built 3 | . . . . . . . . 1 . 2 . . . . . . Authchips . | . . . . . . . . . . . . . . . . . Time 61 | . . . . . . . . 25 . 36 . . . . . . Total Part Build Rating 7 | . . . . . . . . 1 . 6 . . . . . . Part Studies Acquired 5 | . . . . . . . . 5 . . . . . . . . Parts Repaired 5 | . . . . 1 . . . 1 . 2 . . . . . 1 Time 205 | . . . . 60 . . . 19 . 64 . . . . . 62 Parts Recycled . | . . . . . . . . . . . . . . . . . Recycled Matter . | . . . . . . . . . . . . . . . . . Retrieved Matter . | . . . . . . . . . . . . . . . . . Retrieved Components . | . . . . . . . . . . . . . . . . . Parts Scanalyzed 2 | . . . . . . . . 2 . . . . . . . . Part Schematics Acquired 2 | . . . . . . . . 2 . . . . . . . . Parts Damaged . | . . . . . . . . . . . . . . . . . Bothacking | -11 -10 -10 -10 -8 -8 -8 -8 -7 -7 -7 -7 -6 -6 -6 -6 -5 ------------ Run | Yrd Mat Min Sub Mat Gar Mat Gar Fac Gar Fac Gar Fac Gar Fac Gar Fac Used RIF Installer 7 | . . . . . 1 . 1 . 2 . 1 . 1 . 1 . Hotswap 1 | . . . . . . . . . . . . . 1 . . . Code Merge 1 | . . . . . . . . . . . . . . . 1 . Signal Jammer 1 | . . . . . . . . . 1 . . . . . . . Robot Detection 1 | . . . . . . . . . 1 . . . . . . . Watcher Feeds 1 | . . . . . . . . . . . 1 . . . . . Program Shield 1 | . . . . . . . 1 . . . . . . . . . Robots Hacked 35 | . . . . . . . . 1 1 1 5 8 3 4 9 3 Non-combat 7 | . . . . . . . . . . 1 . 4 . 2 . . Combat 28 | . . . . . . . . 1 1 . 5 4 3 2 9 3 Robot Hacks Applied 47 | . . . . . . . . 2 2 3 5 15 3 5 9 3 find_fabricator 1 | . . . . . . . . . . . . 1 . . . . drop_inventory 4 | . . . . . . . . . . . . 3 . 1 . . purge_threat 8 | . . . . . . . . . . 2 . 6 . . . . find_garrison 4 | . . . . . . . . 1 . . . 1 . 1 . 1 overload_power 1 | . . . . . . . . . . . . . . . 1 . amplify_resonance 4 | . . . . . . . . . 1 . 1 . . 1 1 . overwrite_iff 11 | . . . . . . . . . 1 . . 1 2 1 5 1 formatsys_low 1 | . . . . . . . . . . 1 . . . . . . formatsys_high 13 | . . . . . . . . 1 . . 4 3 1 1 2 1 Relay Couplers Released 68 | . . . . . 11 . . . 10 . 21 3 10 . 13 . Machine Destruction 68 | . . . . . 11 . . . 10 . 21 3 10 . 13 . Attached 26 | . . . . . . . . 1 1 2 2 7 4 2 6 1 Merged Code Value 44 | . . . . . . . . . . . . . . . 44 . Fabnet Peak Effective % . | . . . . . . . . . . . . . . . . . Robots Rewired 6 | . . . . . . . . . . . 3 . . . 3 . Allies Hacked 1 | . . . . . . . . . . . . . . . 1 . Hacks Repelled . | . . . . . . . . . . . . . . . . . Allies | -11 -10 -10 -10 -8 -8 -8 -8 -7 -7 -7 -7 -6 -6 -6 -6 -5 -------- Run | Yrd Mat Min Sub Mat Gar Mat Gar Fac Gar Fac Gar Fac Gar Fac Gar Fac Total Allies 35 | . . 2 . . . . . 1 1 1 7 4 5 2 10 2 Largest Group 4 | . . 2 2 1 . . . 1 1 1 4 2 3 2 4 1 Highest-Rated Group 172 | . . 45 45 14 . . . 32 32 10 97 68 160 115 172 49 Highest-Rated Ally 90 | . . 31 31 14 . . . 32 32 10 31 41 80 90 51 49 Total Orders . | . . . . . . . . . . . . . . . . . Ally Attacks 209 | . . . 12 . . . . . 8 . 54 23 24 25 59 4 Total Damage 5162 | . . . 214 . . . . . 238 . 760 758 1150 595 1372 75 Kills 44 | . . . 1 . . . . . 3 . 10 8 4 2 16 . Allies Corrupted . | . . . . . . . . . . . . . . . . . Allies Melted 2 | . . . . . . . . . . . 1 . 1 . . . Intel | -11 -10 -10 -10 -8 -8 -8 -8 -7 -7 -7 -7 -6 -6 -6 -6 -5 ------- Run | Yrd Mat Min Sub Mat Gar Mat Gar Fac Gar Fac Gar Fac Gar Fac Gar Fac Active Infowar (turns) 2640 | 141 275 41 . 688 . . . 1482 13 . . . . . . . Sensors 1495 | . . . . . . . . 1482 13 . . . . . . . Seismic 1145 | 141 275 41 . 688 . . . . . . . . . . . . Robot Analysis Total 1 | . . . . 1 . . . . . . . . . . . . Derelict Logs Recovered 2 | . . 2 . . . . . . . . . . . . . . Drone Launches . | . . . . . . . . . . . . . . . . . Drone Recoveries . | . . . . . . . . . . . . . . . . . Exploration | -11 -10 -10 -10 -8 -8 -8 -8 -7 -7 -7 -7 -6 -6 -6 -6 -5 ------------- Run | Yrd Mat Min Sub Mat Gar Mat Gar Fac Gar Fac Gar Fac Gar Fac Gar Fac Turns Passed 18666 | 227 275 750 362 2414 1270 31 359 1699 2767 1187 2108 1029 538 581 2160 909 Spaces Moved 8078 | 122 170 409 159 1211 629 18 144 753 1148 430 832 420 225 224 840 344 Core 22 | 12 . . . . . . . . . . . . . . . 10 Treads 8056 | 110 170 409 159 1211 629 18 144 753 1148 430 832 420 225 224 840 334 Legs . | . . . . . . . . . . . . . . . . . Wheels . | . . . . . . . . . . . . . . . . . Hover . | . . . . . . . . . . . . . . . . . Flight . | . . . . . . . . . . . . . . . . . Fastest Speed 50 | 50 160 160 160 160 170 170 170 170 210 217 221 213 210 210 210 50 Average Speed 195 | 153 160 160 187 161 170 170 170 187 213 220 221 215 212 210 218 212 Slowest Speed 290 | 160 160 160 240 170 170 170 170 210 250 221 221 290 213 210 250 219 Overloaded Moves . | . . . . . . . . . . . . . . . . . Propulsion Burnouts . | . . . . . . . . . . . . . . . . . Robots Hopped . | . . . . . . . . . . . . . . . . . Potential Cave-ins 2 | . . . . . . . . . 2 . . . . . . . Cave-ins Triggered . | . . . . . . . . . . . . . . . . . Exploration Rate (%) 37 | 6 29 84 11 65 58 3 33 23 79 16 82 24 30 9 70 10 Regions Visited 16 Branch Regions 2 Pre-discovered Areas 1 | . . 1 . . . . . . . . . . . . . . Known Exits Taken 6 | . . . . 1 . 1 . 1 . 1 . 1 . 1 . . Unknown Exits Taken 4 | 1 1 1 1 . . . . . . . . . . . . . Scrap Searched 9 | . . 1 8 . . . . . . . . . . . . . Spaces Dug 12 | . . . . . . . . 4 5 . . 2 . . 1 . Terrain Destroyed 324 | . . . . 88 46 . 15 12 39 10 26 6 2 . 52 28 Melee 9 | . . . . . . . . 4 3 . . 2 . . . . Projectile 68 | . . . . 5 . . . . 7 10 26 . 2 . 16 2 AOE 247 | . . . . 83 46 . 15 8 29 . . 4 . . 36 26 Terrain Rammed . | . . . . . . . . . . . . . . . . . Walls Destroyed . | . . . . . . . . . . . . . . . . . Machines Disabled . | . . . . . . . . . . . . . . . . . Actions | -11 -10 -10 -10 -8 -8 -8 -8 -7 -7 -7 -7 -6 -6 -6 -6 -5 --------- Run | Yrd Mat Min Sub Mat Gar Mat Gar Fac Gar Fac Gar Fac Gar Fac Gar Fac Total 10011 | 144 174 471 200 1504 726 18 196 979 1332 621 1018 508 273 309 1050 488 Wait 574 | . . 31 2 83 8 . 8 118 22 113 5 12 13 47 24 88 Move 8066 | 121 169 408 158 1211 628 18 143 752 1147 430 831 420 224 223 839 344 Hop . | . . . . . . . . . . . . . . . . . Pick Up 162 | 5 4 4 6 24 2 . . 20 17 11 20 7 9 3 19 11 Fast Attach 47 | 7 . 2 4 9 1 . . 4 3 5 3 2 1 1 3 2 Attach 88 | . . 2 1 7 2 . 1 7 8 4 10 15 6 6 15 4 Detach 15 | . . . 1 . . . . . 1 . 3 5 . 3 2 . Swap 131 | 1 . 1 2 27 15 . 4 25 14 3 5 7 1 3 15 8 Drop 166 | . 1 3 10 33 4 . . 14 23 14 21 3 6 2 23 9 Fire 581 | 6 . 19 16 97 65 . 40 25 79 36 67 27 7 11 66 20 Melee 78 | . . . . . . . . 13 8 . 4 7 4 9 31 2 Ram . | . . . . . . . . . . . . . . . . . Kick . | . . . . . . . . . . . . . . . . . Crush 26 | 4 . 1 . 13 . . . 1 . 4 . 3 . . . . Escape Stasis 40 | . . . . . 1 . . . 10 . 14 . 2 . 13 . Rewire 37 | . . . . . . . . . . 1 35 . . 1 . . Trap . | . . . . . . . . . . . . . . . . . Miscellaneous . | . . . . . . . . . . . . . . . . . Route ------- -11/Scrapyard -10/Materials -10/Mines (discovered 3 exits: [*Mat x2] / [*Sub]) -10/Subcaves -8/Materials (discovered 3 exits: *Fac x2 / Gar) -8/Garrison (discovered 4 exits: *Mat x4) -8/Materials -8/Garrison -7/Factory (discovered 2 exits: *Fac / Gar) -7/Garrison (discovered 3 exits: *Fac x3) -7/Factory (discovered 2 exits: [*Low] / Gar) -7/Garrison (discovered 3 exits: *Fac x3) -6/Factory (discovered 2 exits: [*Low] / Gar) -6/Garrison (discovered 3 exits: *Fac x3) -6/Factory -6/Garrison (discovered 3 exits: *Fac x3) -5/Factory (discovered 1 exit: [*Fac]) History --------- Turn | Location | Event 14 | -11/Scrapyard | Discovered new exit (range 15) 228 | -11/Scrapyard | Entered Materials 305 | -10/Materials | Build established: Mutant 456 | -10/Materials | Discovered new exit (range 15) 503 | -10/Materials | Entered Mines 579 | -10/Mines | Discovered new exit (range 6) 597 | -10/Mines | Discovered new exit (range 7) 637 | -10/Mines | Learned location of Storage (-8) 963 | -10/Mines | Learned 2 Materials zone layouts 1228 | -10/Mines | Discovered new exit (range 6) 1253 | -10/Mines | Entered Subcaves 1253 | -10/Subcaves | Accompanied by 2 allies 1254 | -10/Subcaves | Approached by a straggling Scientist 1258 | -10/Subcaves | Led the pair of lost Derelicts to an unsafe place 1553 | -10/Subcaves | Shifting Twisted Machinery released Hvy. Riot Gun 1584 | -10/Subcaves | Discovered new exit (range 9) 1615 | -10/Subcaves | Entered Materials 1615 | -8/Materials | Accompanied by 1 ally 1615 | -8/Materials | Evolved 4 slots: Propulsion x2, Utility x2 1616 | -8/Materials | Identified exit to Factory 1847 | -8/Materials | Discovered exit to Factory (range 16) 1948 | -8/Materials | Build established: Scavenger-Mutant 2426 | -8/Materials | Garrison activated, responded to threat 3841 | -8/Materials | Repaired Prc. Beam Rifle 3980 | -8/Materials | Build established: Mutant 4029 | -8/Materials | Identified exit to Garrison 4029 | -8/Materials | Entered Garrison 4077 | -8/Garrison | Triggered checkpoint 4117 | -8/Garrison | Discovered new exit (range 5) 4251 | -8/Garrison | Triggered checkpoint 4353 | -8/Garrison | Garrison Relay disabled 4433 | -8/Garrison | Triggered checkpoint 4490 | -8/Garrison | Discovered new exit (range 12) 4509 | -8/Garrison | Triggered checkpoint 4514 | -8/Garrison | Discovered new exit (range 30) 4514 | -8/Garrison | Discovered new exit (range 60) 4514 | -8/Garrison | Discovered new exit (range 23) 4514 | -8/Garrison | Discovered new exit (range 44) 4833 | -8/Garrison | Triggered checkpoint 4879 | -8/Garrison | Installed Relay Interface Framework 4887 | -8/Garrison | Garrison Relay disabled 5123 | -8/Garrison | Garrison Relay disabled 5299 | -8/Garrison | Entered Materials 5330 | -8/Materials | Identified exit to Garrison 5330 | -8/Materials | Entered Garrison 5346 | -8/Garrison | Expanded RIF knowledge: Program Shield 5424 | -8/Garrison | Triggered checkpoint 5529 | -8/Garrison | Destroyed 12 combat bots 5531 | -8/Garrison | Core integrity fell below 50% 5540 | -8/Garrison | Triggered checkpoint 5675 | -8/Garrison | Discovered exit to Factory (range 9) 5689 | -8/Garrison | Entered Factory 5689 | -7/Factory | Evolved 2 slots: Utility x2 5766 | -7/Factory | Repaired Hrd. Medium Armor Plating 6442 | -7/Factory | Central database locked down 6483 | -7/Factory | Discovered new exit (range 12) 6501 | -7/Factory | Identified exit to Factory 6582 | -7/Factory | Fabricated Huge Storage Unit (x1) 7351 | -7/Factory | Identified exit to Garrison 7388 | -7/Factory | Entered Garrison 7388 | -7/Garrison | Accompanied by 1 ally 7419 | -7/Garrison | Triggered checkpoint 7545 | -7/Garrison | Triggered checkpoint 7636 | -7/Garrison | Triggered checkpoint 8019 | -7/Garrison | P-70 Sage assimilated allied Guardian 4a 8108 | -7/Garrison | Expanded RIF knowledge: Signal Jamming 8278 | -7/Garrison | Triggered checkpoint 8356 | -7/Garrison | Discovered new exit (range 10) 8508 | -7/Garrison | Triggered checkpoint 8836 | -7/Garrison | Triggered checkpoint 8899 | -7/Garrison | Discovered new exit (range 12) 8912 | -7/Garrison | Discovered new exit (range 65) 8912 | -7/Garrison | Discovered new exit (range 13) 8912 | -7/Garrison | Discovered new exit (range 70) 8971 | -7/Garrison | Garrison Relay disabled 9279 | -7/Garrison | Triggered checkpoint 9518 | -7/Garrison | Expanded RIF knowledge: Robot Detection 9560 | -7/Garrison | Triggered checkpoint 9661 | -7/Garrison | Garrison Relay disabled 10059 | -7/Garrison | Garrison Relay disabled 10078 | -7/Garrison | Build established: Bothacker-Mutant 10155 | -7/Garrison | Entered Factory 10220 | -7/Factory | Discovered new exit (range 9) 10639 | -7/Factory | Repaired Arm. Treads+ 10666 | -7/Factory | Repaired Lgt. Treads 10706 | -7/Factory | Build established: Mutant 10994 | -7/Factory | Fabricated Arm. Treads (x2) 11340 | -7/Factory | Identified exit to Garrison 11342 | -7/Factory | Entered Garrison 11342 | -7/Garrison | Accompanied by 1 ally 11477 | -7/Garrison | System corruption reached 10% 11566 | -7/Garrison | Triggered checkpoint 11692 | -7/Garrison | Garrison Relay disabled 11826 | -7/Garrison | Triggered checkpoint 11842 | -7/Garrison | Triggered checkpoint 11854 | -7/Garrison | Triggered checkpoint 11866 | -7/Garrison | Triggered checkpoint 11887 | -7/Garrison | Destroyed 11 combat bots 11962 | -7/Garrison | Triggered checkpoint 12076 | -7/Garrison | Garrison Relay disabled 12138 | -7/Garrison | Discovered exit to Factory (range 12) 12375 | -7/Garrison | Discovered exit to Factory (range 10) 12395 | -7/Garrison | Build established: Bothacker-Mutant 12722 | -7/Garrison | Triggered checkpoint 12751 | -7/Garrison | Garrison Relay disabled 13096 | -7/Garrison | Triggered checkpoint 13216 | -7/Garrison | Garrison Relay disabled 13247 | -7/Garrison | Expanded RIF knowledge: Watcher Feeds 13272 | -7/Garrison | Garrison Relay disabled 13423 | -7/Garrison | Discovered exit to Factory (range 12) 13450 | -7/Garrison | Entered Factory 13450 | -6/Factory | Accompanied by 2 allies 13450 | -6/Factory | Evolved 2 slots: Utility x2 13522 | -6/Factory | Assembled infested ambush trap array 13569 | -6/Factory | Lost 4 parts (2n2u) 13580 | -6/Factory | Build established: Botlord-Mutant 13588 | -6/Factory | Lost 3 allies 14442 | -6/Factory | Garrison activated, responded to threat 14476 | -6/Factory | Discovered new exit (range 8) 14479 | -6/Factory | Identified exit to Garrison 14479 | -6/Factory | Entered Garrison 14574 | -6/Garrison | Found embedded Infiltrators 14581 | -6/Garrison | Triggered checkpoint 14630 | -6/Garrison | Garrison Relay disabled 14741 | -6/Garrison | Spotted B-75 Beast 14761 | -6/Garrison | Destroyed B-75 Beast 14777 | -6/Garrison | Triggered checkpoint 14811 | -6/Garrison | Triggered checkpoint 14834 | -6/Garrison | Discovered new exit (range 54) 14834 | -6/Garrison | Discovered new exit (range 66) 14834 | -6/Garrison | Discovered new exit (range 26) 14900 | -6/Garrison | Expanded RIF knowledge: Hotswap 14948 | -6/Garrison | Garrison Relay disabled 15017 | -6/Garrison | Entered Factory 15017 | -6/Factory | Accompanied by 2 allies 15595 | -6/Factory | Identified exit to Garrison 15598 | -6/Factory | Entered Garrison 15598 | -6/Garrison | Accompanied by 1 ally 15956 | -6/Garrison | Garrison Relay disabled 16238 | -6/Garrison | Triggered checkpoint 16244 | -6/Garrison | Triggered checkpoint 16271 | -6/Garrison | Triggered checkpoint 16298 | -6/Garrison | Lost 4 allies 16413 | -6/Garrison | Discovered new exit (range 12) 16498 | -6/Garrison | Triggered checkpoint 16716 | -6/Garrison | Expanded RIF knowledge: Code Merge 16746 | -6/Garrison | Garrison Relay disabled 17332 | -6/Garrison | Discovered new exit (range 10) 17544 | -6/Garrison | Triggered checkpoint 17606 | -6/Garrison | Garrison Relay disabled 17666 | -6/Garrison | Discovered new exit (range 10) 17758 | -6/Garrison | Entered Factory 17758 | -5/Factory | Evolved 2 slots: Utility x2 18207 | -5/Factory | Discovered new exit (range 13) 18478 | -5/Factory | Cargo convoy interrupted 18515 | -5/Factory | Repaired Imp. Heavy Treads 18587 | -5/Factory | Garrison activated, responded to threat 18651 | -5/Factory | Released all parts (13) 18660 | -5/Factory | Core integrity fell below 50% 18662 | -5/Factory | Lost 14 allies 18665 | -5/Factory | Core integrity fell below 20% 18667 | -5/Factory | Destroyed by Y-64 Sentinel with Wave Gun Last Messages --------------- 18656_ U-05 Engineer builds a Wall. 18656_ Penetrated by Slug. 18657_ U-05 Engineer builds a Wall. 18657_ K-01 Serf collects debris. 18659_ Penetrated by Slug. 18659_ Slug penetrates Wall. 18661_ K-01 Serf collects debris. 18661_ Penetrated by Slug. 18661_ K-01 Serf collects debris. 18662_ Penetrated by Slug. 18662_ K-01 Serf collects debris. 18662_ Penetrated by Slug. 18663_ U-05 Engineer builds a Door. 18664_ K-01 Serf collects debris. 18665_ P-70 Sage resets P-70 Sage, system corruption cleaned. 18665_ Slug penetrates P-70 Sage. 18665_ K-01 Serf collects debris. 18666_ Penetrated by Slug. 18667_ U-05 Engineer builds a Door. 18667_ Penetrated by Slug. Map ----- +----------------------------------------------------+ | ?????????????????????????????????????????????????? | | ?????????????????????????????????????????????????? | | ?????????????????????????????????????????????????? | | ?????????????????????????????????????????????????? | | ?????????????????????????????????????????????????? | | ?????????????????????????????????????????????????? | | ?????????????????????????????????????????????????? | | ?????????????????????????????????????????????????? | | ?????????????????????????????????????????????????? | | ?????????????????????????????????????????????????? | | ?????????????????????????????????????????????????? | | ?????????????????????????????????????????????????? | | ?????????????????????????????????????????????????? | | ?????????????????????????????????????????????????? | | ????????????????????????????? ???????????????????? | | ????????????????????????????" ???????????????????? | | ?????????????????????????? ????????????????????? | | ??????????????????????????""=????????????????????? | | ??????????????????????????""=????????????????????? | | ??????????????????????????""??#??????????????????? | | ??????????????????????????[=?[##?????=%??????????? | | ??????????######+#########!##+#####[%! ?????????? | | ?????????? =k!!!ku=!]&==[[ ?????????? | | ?????????? *%[%![!*!%%[! #????????? | | ?????? ![[*%k%=%=%% #????????? | | ???? @[!h%*=%=*=! #????????? | | ??? uh!%%k!=!!]% #????????? | | #???????#####;## p###+######+#???????????? | | #??????????????# Yp#??????????????????????? | | #??????????????# #??????????????????????? | | #??????????????# #??????????????????????? | | #??????????????# [ #??????????????????????? | | +??????????????# !/]*#??????????????????????? | | #??????????????#]=![!#??????????????????????? | | #??????????????#=!=![#??????????????????????? | | ################u!u!]#??????????????????????? | | ^ =![!!!#??????????????????????? | | ^ ^ *|!=!#??????????????????????? | | " """ =p][#??????????????????????? | | T """ [ #??????????????????????? | | " """ #??????????????????????? | | ######+# # ###??????????????????????? | | #??? ]?? ##????????????????????????? | | #?? ??? ??????????????????????????? | | #?""" """?? ??????????????????????????? | | """""" #?""" """?? ??????????????????????????? | | #??"" """ ? ??????????????????????????? | | """""" #?? ??????????????????????????? | | #?? ??????????????????????????? | | """""" ############??????????????????????????? | +----------------------------------------------------+ Best States ------------- Heat Dissipation 61 Coolant Potential 50 Energy Generation 18 Energy Capacity 290 Matter Stores 300 Matter Capacity 300 Sight Range 16 Robot Scan Range 15 Terrain Scan Density 10 Armor Coverage 825 Resistance: KI 30 Resistance: TH 25 Resistance: EM 15 Utility Shielding 66 Evasion (%) 40 Targeting Accuracy 8 Core Analysis 6 Recoil Reduction 4 Relay Coupler Types 6 Relay Coupler Value 124 Item Schematics ----------------- Huge Storage Unit | -8/Materials | Hacked Arm. Treads | -7/Factory | Scanalyzed Hrd. Medium Armor Plating | -7/Factory | Scanalyzed Robot Schematics ------------------ None Fabricated ------------ Huge Storage Unit | x1 | -7/Factory Arm. Treads | x2 | -7/Factory Repaired ---------- Prc. Beam Rifle | 58% | -8/Materials Hrd. Medium Armor Plating | 18% | -7/Factory Arm. Treads | 47% | -7/Factory Lgt. Treads | 43% | -7/Factory Imp. Heavy Treads | 34% | -5/Factory Studied --------- Arm. Treads | -7/Factory | Hacked Katana | -7/Factory | Hacked Imp. Grenade Launcher | -7/Factory | Hacked Imp. Deuterium Engine | -7/Factory | Hacked Hvy. Particle Cannon | -7/Factory | Hacked Alien Tech Used ----------------- None Achievements -------------- Oppo Buddy Challenges ------------ None Game ------ Seed HelicalMultinovaRedirector Manual? 0 Play Time 01:40:01 Cumulative 978.6 hours Start 2026.07.15 @ 09:49:47 End 2026.07.15 @ 11:28:26 Sessions 1 Manual Loads 0 Difficulty Rogue Special Mode None Game No. 1664 Rogue 1664 Adventurer 0 Explorer 0 Win Type - Total 95 Types 56/1/16/16/4/0/0/1/0/1 Lore% 93 Gallery% 80 Achievement% 69 Wizard Run 0 Options --------- Layout 0 ASCII 1 Keyboard 0 Movement Numpad Keybinds 1 Fullscreen 2 Font 18/SmallcapsGlow Map View 76x50 Zoom Use 0% Tactical HUD 1 Map Filters NONE Filters NONE Steam 1 RUN: 8bc5f2c1-64a1-4626-90b8-e961f3538885